fUST/lending_fUST_20250223
["ID","MTS","AMOUNT","RATE_DAILY","PERIOD"]
[354159730,1740301840430,-500.0,0.0001378,2]
[354159731,1740301840440,-500.0,0.0001378,2]
[354159732,1740301840450,-8302.59,0.0001378,2]
[354159733,1740301840459,-500.0,0.0001378,2]
[354159734,1740301840468,-500.0,0.0001378,2]
[354159735,1740301840478,-3032.66,0.0001378,2]
[354159736,1740301840486,-500.0,0.0001378,2]
[354159737,1740301840573,-944.55,0.0001378,2]
[354159738,1740301840582,-500.0,0.0001378,2]
[354159739,1740301840592,-2235.93,0.0001378,2]
[354159740,1740301840601,-500.0,0.0001378,2]
[354159741,1740301840610,-500.0,0.0001378,2]
[354159742,1740301840619,-500.0,0.0001378,2]
[354159743,1740301840628,-993.87,0.0001378,2]
[354159744,1740301840638,-500.0,0.0001378,2]
[354159745,1740301840647,-593.61,0.0001378,2]
[354159746,1740301840656,-500.0,0.0001378,2]
[354159747,1740301840665,-150.0,0.00013846,2]
[354159748,1740301840674,-500.54207488,0.00013863,2]
[354159749,1740301840684,-500.0,0.00013863,2]
[354159750,1740301840693,-500.0,0.00013863,2]
[354159751,1740301840703,-500.0,0.00013863,2]
[354159752,1740301840712,-500.0,0.00013863,2]
[354159753,1740301840721,-500.0,0.00013863,2]
[354159754,1740301840731,-500.0,0.00013863,2]
[354159755,1740301840740,-500.0,0.00013863,2]
[354159756,1740301840749,-500.0,0.00013863,2]
[354159757,1740301840759,-500.0,0.00013863,2]
[354159758,1740301840768,-500.0,0.00013863,2]
[354159759,1740301840778,-500.0,0.00013863,2]
[354159760,1740301840787,-500.0,0.00013863,2]
[354159761,1740301840796,-500.0,0.00013863,2]
[354159762,1740301840805,-500.0,0.00013863,2]
[354159763,1740301840814,-500.0,0.00013863,2]
[354159764,1740301840824,-500.0,0.00013863,2]
[354159765,1740301840833,-705.15,0.00013863,2]
[354159766,1740301840842,-500.0,0.00013863,2]
[354159767,1740301840851,-573.131933,0.00013863,2]
[354159768,1740301840861,-500.0,0.00013863,2]
[354159769,1740301840871,-500.0,0.00013863,2]
[354159770,1740301840880,-500.0,0.00013863,2]
[354159771,1740301840889,-500.0,0.00013863,2]
[354159772,1740301840898,-500.0,0.00013863,2]
[354159773,1740301840907,-500.0,0.00013863,2]
[354159774,1740301840917,-500.0,0.00013863,2]
[354159775,1740301840926,-1398.29,0.00013863,2]
[354159776,1740301840936,-500.0,0.00013863,2]
[354159777,1740301840945,-500.0,0.00013863,2]
[354159778,1740301840954,-500.0,0.00013863,2]
[354159779,1740301840963,-500.0,0.00013863,2]
[354159780,1740301840972,-500.0,0.00013863,2]
[354159781,1740301840982,-500.0,0.00013863,2]
[354159782,1740301840993,-500.0,0.00013863,2]
[354159783,1740301841003,-500.0,0.00013863,2]
[354159784,1740301841012,-500.0,0.00013863,2]
[354159785,1740301841021,-500.0,0.00013863,2]
[354159786,1740301841030,-312.56967895,0.00013863,2]
[354159787,1740301841039,-505.95704703,0.00013863,2]
[354159788,1740301841048,-500.0,0.00013863,2]
[354159789,1740301841058,-813.1,0.00013863,2]
[354159790,1740301841067,-500.0,0.00013863,2]
[354159791,1740301841076,-500.0,0.00013863,2]
[354159792,1740301841085,-331.8708533,0.00013863,2]
[354159793,1740301841095,-500.0,0.00013863,2]
[354159794,1740301841105,-500.0,0.00013863,2]
[354159795,1740301841114,-500.0,0.00013863,2]
[354159796,1740301841123,-500.0,0.00013863,2]
[354159797,1740301841132,-500.0,0.00013863,2]
[354159798,1740301841142,-500.0,0.00013863,2]
[354159799,1740301841151,-4432.49,0.00013863,2]
[354159800,1740301841161,-500.0,0.00013863,2]
[354159801,1740301841172,-500.0,0.00013863,2]
[354159802,1740301841182,-505.7,0.00013863,2]
[354159803,1740301841191,-1623.47,0.00013863,2]
[354159804,1740301841201,-500.0,0.00013863,2]
[354159805,1740301841210,-500.0,0.00013863,2]
[354159806,1740301841220,-500.0,0.00013863,2]
[354159807,1740301841229,-500.0,0.00013863,2]
[354159808,1740301841239,-8302.59,0.00013863,2]
[354159809,1740301841248,-500.0,0.00013863,2]
[354159810,1740301841257,-3032.66,0.00013863,2]
[354159811,1740301841267,-500.0,0.00013863,2]
[354159812,1740301841276,-944.55,0.00013863,2]
[354159813,1740301841285,-500.0,0.00013863,2]
[354159814,1740301841295,-2235.93,0.00013863,2]
[354159815,1740301841304,-500.0,0.00013863,2]
[354159816,1740301841314,-500.0,0.00013863,2]
[354159817,1740301841323,-500.0,0.00013863,2]
[354159818,1740301841332,-993.87,0.00013863,2]
[354159819,1740301841342,-500.0,0.00013863,2]
[354159820,1740301841351,-593.61,0.00013863,2]
[354159821,1740301841360,-500.0,0.00013863,2]
[354159822,1740301841370,-500.0,0.00013945,2]
[354159823,1740301841379,-500.0,0.00013945,2]
[354159824,1740301841388,-500.0,0.00013945,2]
[354159825,1740301841397,-500.0,0.00013945,2]
[354159826,1740301841406,-500.0,0.00013945,2]
[354159827,1740301841415,-500.0,0.00013945,2]
[354159828,1740301841424,-500.0,0.00013945,2]
[354159829,1740301841433,-500.0,0.00013945,2]
[354159830,1740301841442,-500.0,0.00013945,2]
[354159831,1740301841451,-500.0,0.00013945,2]
[354159832,1740301841461,-500.0,0.00013945,2]
[354159833,1740301841470,-500.0,0.00013945,2]
[354159834,1740301841479,-500.0,0.00013945,2]
[354159835,1740301841488,-500.0,0.00013945,2]
[354159836,1740301841497,-500.0,0.00013945,2]
[354159837,1740301841506,-500.0,0.00013945,2]
[354159838,1740301841515,-705.15,0.00013945,2]
[354159839,1740301841524,-500.0,0.00013945,2]
[354159840,1740301841533,-500.0,0.00013945,2]
[354159841,1740301841542,-151.0,0.00013945,2]
[354159842,1740301841551,-151.0,0.00013945,2]
[354159843,1740301841561,-156.754738,0.00013945,2]
[354159844,1740301841570,-609.84795924,0.00013945,2]
[354159845,1740301841579,-500.0,0.00013945,2]
[354159846,1740301841588,-151.120753,0.00013945,2]
[354159847,1740301841596,-500.0,0.00013945,2]
[354159848,1740301841605,-500.0,0.00013945,2]
[354159849,1740301841615,-500.0,0.00013945,2]
[354159850,1740301841623,-500.0,0.00013945,2]
[354159851,1740301841632,-1398.29,0.00013945,2]
[354159852,1740301841641,-151.0,0.00013945,2]
[354159853,1740301841650,-500.0,0.00013945,2]
[354159854,1740301841659,-500.0,0.00013945,2]
[354159855,1740301841668,-500.0,0.00013945,2]
[354159856,1740301841677,-500.0,0.00013945,2]
[354159857,1740301841686,-500.0,0.00013945,2]
[354159858,1740301841695,-500.0,0.00013945,2]
[354159859,1740301841704,-648.26213378,0.00013945,2]
[354159860,1740301841713,-500.0,0.00013945,2]
[354159861,1740301841722,-500.0,0.00013945,2]
[354159862,1740301841731,-500.0,0.00013945,2]
[354159863,1740301841740,-500.0,0.00013945,2]
[354159864,1740301841749,-813.1,0.00013945,2]
[354159865,1740301841758,-500.0,0.00013945,2]
[354159866,1740301841767,-500.0,0.00013945,2]
[354159867,1740301841776,-151.0,0.00013945,2]
[354159868,1740301841785,-500.0,0.00013945,2]
[354159869,1740301841794,-500.0,0.00013945,2]
[354159870,1740301841803,-500.0,0.00013945,2]
[354159871,1740301841811,-151.0,0.00013945,2]
[354159872,1740301841821,-151.0,0.00013945,2]
[354159873,1740301841830,-500.0,0.00013945,2]
[354159874,1740301841839,-500.0,0.00013945,2]
[354159875,1740301841848,-4432.49,0.00013945,2]
[354159876,1740301841857,-500.0,0.00013945,2]
[354159877,1740301841866,-500.0,0.00013945,2]
[354159878,1740301841876,-505.7,0.00013945,2]
[354159879,1740301841885,-1623.47,0.00013945,2]
[354159880,1740301841894,-151.423635,0.00013945,2]
[354159881,1740301841903,-500.0,0.00013945,2]
[354159882,1740301841913,-500.0,0.00013945,2]
[354159883,1740301841922,-500.0,0.00013945,2]
[354159884,1740301841931,-500.0,0.00013945,2]
[354159885,1740301841941,-8302.59,0.00013945,2]
[354159886,1740301841950,-500.0,0.00013945,2]
[354159887,1740301841960,-3032.66,0.00013945,2]
[354159888,1740301841969,-500.0,0.00013945,2]
[354159889,1740301841979,-944.55,0.00013945,2]
[354159890,1740301841989,-500.0,0.00013945,2]
[354159891,1740301841998,-2235.93,0.00013945,2]
[354159892,1740301842008,-500.0,0.00013945,2]
[354159893,1740301842017,-500.0,0.00013945,2]
[354159894,1740301842026,-500.0,0.00013945,2]
[354159895,1740301842035,-993.87,0.00013945,2]
[354159896,1740301842044,-500.0,0.00013945,2]
[354159897,1740301842054,-593.61,0.00013945,2]
[354159898,1740301842064,-500.0,0.00013945,2]
[354159899,1740301842073,-150.0,0.00014001,4]
[354159900,1740301842083,-500.0,0.00014026,2]
[354159901,1740301842093,-466.98140087,0.00014026,2]
[354159902,1740301842106,-500.0,0.00014027,2]
[354159903,1740301842116,-500.0,0.00014027,2]
[354159904,1740301842125,-500.0,0.00014027,2]
[354159905,1740301842134,-151.288971,0.00014027,2]
[354159906,1740301842143,-500.0,0.00014027,2]
[354159907,1740301842152,-500.0,0.00014027,2]
[354159908,1740301842162,-269.318309,0.00014027,2]
[354159909,1740301842171,-500.0,0.00014027,2]
[354159910,1740301842180,-500.0,0.00014027,2]
[354159911,1740301842190,-500.0,0.00014027,2]
[354159912,1740301842199,-500.0,0.00014027,2]
[354159913,1740301842208,-500.0,0.00014027,2]
[354159914,1740301842217,-500.0,0.00014027,2]
[354159915,1740301842227,-500.0,0.00014027,2]
[354159916,1740301842236,-500.0,0.00014027,2]
[354159917,1740301842245,-500.0,0.00014027,2]
[354159918,1740301842254,-500.0,0.00014027,2]
[354159919,1740301842263,-500.0,0.00014027,2]
[354159920,1740301842272,-705.15,0.00014027,2]
[354159921,1740301842281,-158.226885,0.00014027,2]
[354159922,1740301842290,-500.0,0.00014027,2]
[354159924,1740301842299,-500.0,0.00014027,2]
[354159926,1740301842308,-500.0,0.00014027,2]
[354159927,1740301842317,-500.0,0.00014027,2]
[354159928,1740301842326,-500.0,0.00014027,2]
[354159929,1740301842336,-500.0,0.00014027,2]
[354159930,1740301842346,-1398.29,0.00014027,2]
[354159931,1740301842354,-500.0,0.00014027,2]
[354159932,1740301842363,-500.0,0.00014027,2]
[354159933,1740301842374,-500.0,0.00014027,2]
[354159934,1740301842383,-500.0,0.00014027,2]
[354159935,1740301842393,-500.0,0.00014027,2]
[354159936,1740301842402,-500.0,0.00014027,2]
[354159937,1740301842413,-500.0,0.00014027,2]
[354159939,1740301842422,-500.0,0.00014027,2]
[354159940,1740301842432,-500.0,0.00014027,2]
[354159941,1740301842442,-500.0,0.00014027,2]
[354159942,1740301842451,-813.1,0.00014027,2]
[354159943,1740301842461,-500.0,0.00014027,2]
[354159944,1740301842470,-511.89918106,0.00014027,2]
[354159945,1740301842480,-500.0,0.00014027,2]
[354159946,1740301842490,-500.0,0.00014027,2]
[354159947,1740301842499,-500.0,0.00014027,2]
[354159948,1740301842508,-500.0,0.00014027,2]
[354159950,1740301842516,-500.0,0.00014027,2]
[354159952,1740301842526,-4432.49,0.00014027,2]
[354159954,1740301842535,-500.0,0.00014027,2]
[354159956,1740301842545,-500.0,0.00014027,2]
[354159958,1740301842554,-505.7,0.00014027,2]
[354159960,1740301842563,-1623.47,0.00014027,2]
[354159962,1740301842573,-500.0,0.00014027,2]
[354159972,1740301842656,-500.0,0.00014027,2]
[354159974,1740301842666,-500.0,0.00014027,2]
[354159977,1740301842675,-500.0,0.00014027,2]
[354159981,1740301842686,-8302.59,0.00014027,2]
[354159983,1740301842695,-500.0,0.00014027,2]
[354159985,1740301842704,-3032.66,0.00014027,2]
[354159987,1740301842713,-500.0,0.00014027,2]
[354159989,1740301842722,-944.55,0.00014027,2]
[354159992,1740301842732,-500.0,0.00014027,2]
[354159994,1740301842742,-2235.93,0.00014027,2]
[354159995,1740301842751,-500.0,0.00014027,2]
[354159997,1740301842760,-500.0,0.00014027,2]
[354159998,1740301842769,-500.0,0.00014027,2]
[354160001,1740301842778,-993.87,0.00014027,2]
[354160003,1740301842787,-500.0,0.00014027,2]
[354160006,1740301842796,-593.61,0.00014027,2]
[354160008,1740301842806,-500.0,0.00014027,2]
[354160010,1740301842815,-150.0,0.00014047,4]
[354160012,1740301842825,-355.2534587,0.000141,2]
[354160015,1740301842835,-500.0,0.00014109,2]
[354160017,1740301842844,-500.0,0.00014109,2]
[354160019,1740301842853,-500.0,0.00014109,2]
[354160021,1740301842862,-500.0,0.00014109,2]
[354160022,1740301842871,-500.0,0.00014109,2]
[354160023,1740301842879,-500.0,0.00014109,2]
[354160025,1740301842888,-500.0,0.00014109,2]
[354160026,1740301842897,-500.0,0.00014109,2]
[354160028,1740301842907,-500.0,0.00014109,2]
[354160030,1740301842916,-500.0,0.00014109,2]
[354160032,1740301842925,-500.0,0.00014109,2]
[354160034,1740301842934,-500.0,0.00014109,2]
[354160037,1740301842943,-500.0,0.00014109,2]
[354160040,1740301842952,-500.0,0.00014109,2]
[354160043,1740301842961,-500.0,0.00014109,2]
[354160046,1740301842971,-446.97555134,0.00014109,2]
[354160048,1740301842980,-705.15,0.00014109,2]
[354160051,1740301842990,-314.33127923,0.00014109,2]
[354160054,1740301842999,-151.0,0.00014109,2]
[354160056,1740301843008,-500.0,0.00014109,2]
[354160058,1740301843017,-500.0,0.00014109,2]
[354160060,1740301843027,-500.0,0.00014109,2]
[354160062,1740301843036,-500.0,0.00014109,2]
[354160064,1740301843045,-500.0,0.00014109,2]
[354160066,1740301843054,-1398.29,0.00014109,2]
[354160068,1740301843063,-500.0,0.00014109,2]
[354160070,1740301843073,-500.0,0.00014109,2]
[354160071,1740301843081,-500.0,0.00014109,2]
[354160072,1740301843090,-429.97483242,0.00014109,2]
[354160073,1740301843104,-500.0,0.00014109,2]
[354160074,1740301843113,-500.0,0.00014109,2]
[354160075,1740301843122,-500.0,0.00014109,2]
[354160076,1740301843131,-500.0,0.00014109,2]
[354160077,1740301843141,-500.0,0.00014109,2]
[354160078,1740301843150,-500.0,0.00014109,2]
[354160079,1740301843159,-813.1,0.00014109,2]
[354160080,1740301843168,-500.0,0.00014109,2]
[354160081,1740301843176,-151.0,0.00014109,2]
[354160082,1740301843186,-500.0,0.00014109,2]
[354160083,1740301843195,-500.0,0.00014109,2]
[354160084,1740301843204,-500.0,0.00014109,2]
[354160085,1740301843214,-165.609587,0.00014109,2]
[354160086,1740301843223,-151.0,0.00014109,2]
[354160087,1740301843233,-500.0,0.00014109,2]
[354160088,1740301843242,-500.0,0.00014109,2]
[354160089,1740301843252,-4432.49,0.00014109,2]
[354160090,1740301843262,-500.0,0.00014109,2]
[354160091,1740301843271,-500.0,0.00014109,2]
[354160092,1740301843280,-505.7,0.00014109,2]
[354160093,1740301843290,-1623.47,0.00014109,2]
[354160094,1740301843299,-500.0,0.00014109,2]
[354160095,1740301843308,-500.0,0.00014109,2]
[354160096,1740301843317,-500.0,0.00014109,2]
[354160097,1740301843326,-500.0,0.00014109,2]
[354160098,1740301843336,-8302.59,0.00014109,2]
[354160099,1740301843347,-458.47733376,0.00014109,2]
[354160100,1740301843358,-3032.66,0.00014109,2]
[354160101,1740301843368,-500.0,0.00014109,2]
[354160102,1740301843377,-944.55,0.00014109,2]
[354160103,1740301843387,-500.0,0.00014109,2]
[354160104,1740301843396,-2235.93,0.00014109,2]
[354160105,1740301843407,-500.0,0.00014109,2]
[354160106,1740301843417,-500.0,0.00014109,2]
[354160107,1740301843427,-500.0,0.00014109,2]
[354160108,1740301843436,-993.87,0.00014109,2]
[354160109,1740301843445,-500.0,0.00014109,2]
[354160110,1740301843454,-593.61,0.00014109,2]
[354160111,1740301843463,-500.0,0.00014109,2]
[354160112,1740301843472,-500.0,0.00014164,2]
[354160113,1740301843481,-151.0,0.00014191,2]
[354160114,1740301843490,-500.0,0.00014191,2]
[354160115,1740301843499,-500.0,0.00014191,2]
[354160116,1740301843510,-500.0,0.00014191,2]
[354160117,1740301843519,-500.0,0.00014191,2]
[354160118,1740301843529,-500.0,0.00014191,2]
[354160119,1740301843538,-535.49,0.00014191,2]
[354160120,1740301843547,-500.0,0.00014191,2]
[354160121,1740301843556,-500.0,0.00014191,2]
[354160122,1740301843565,-500.0,0.00014191,2]
[354160123,1740301843574,-500.0,0.00014191,2]
[354160124,1740301843583,-500.0,0.00014191,2]
[354160125,1740301843592,-500.0,0.00014191,2]
[354160126,1740301843601,-633.35,0.00014191,2]
[354160127,1740301843610,-500.0,0.00014191,2]
[354160128,1740301843619,-705.15,0.00014191,2]
[354160129,1740301843628,-151.0,0.00014191,2]
[354160130,1740301843637,-500.0,0.00014191,2]
[354160131,1740301843646,-500.0,0.00014191,2]
[354160132,1740301843655,-500.0,0.00014191,2]
[354160133,1740301843664,-500.0,0.00014191,2]
[354160134,1740301843673,-500.0,0.00014191,2]
[354160135,1740301843682,-1398.29,0.00014191,2]
[354160136,1740301843691,-500.0,0.00014191,2]
[354160137,1740301843700,-500.0,0.00014191,2]
[354160138,1740301843710,-500.0,0.00014191,2]
[354160139,1740301843719,-500.0,0.00014191,2]
[354160140,1740301843727,-500.0,0.00014191,2]
[354160141,1740301843738,-500.0,0.00014191,2]
[354160142,1740301843747,-500.0,0.00014191,2]
[354160143,1740301843756,-500.0,0.00014191,2]
[354160144,1740301843765,-500.0,0.00014191,2]
[354160145,1740301843775,-813.1,0.00014191,2]
[354160146,1740301843784,-500.0,0.00014191,2]
[354160147,1740301843794,-153.090619,0.00014191,2]
[354160148,1740301843804,-500.0,0.00014191,2]
[354160149,1740301843814,-500.0,0.00014191,2]
[354160150,1740301843823,-500.0,0.00014191,2]
[354160151,1740301843832,-151.0,0.00014191,2]
[354160152,1740301843842,-500.0,0.00014191,2]
[354160153,1740301843851,-500.0,0.00014191,2]
[354160154,1740301843861,-4432.49,0.00014191,2]
[354160155,1740301843871,-500.0,0.00014191,2]
[354160156,1740301843880,-500.0,0.00014191,2]
[354160157,1740301843890,-505.7,0.00014191,2]
[354160158,1740301843901,-1623.47,0.00014191,2]
[354160159,1740301843911,-152.53063581,0.00014191,2]
[354160160,1740301843921,-500.0,0.00014191,2]
[354160161,1740301843930,-526.67,0.00014191,2]
[354160162,1740301843940,-500.0,0.00014191,2]
[354160163,1740301843950,-8302.59,0.00014191,2]
[354160164,1740301843960,-3032.66,0.00014191,2]
[354160165,1740301843971,-500.0,0.00014191,2]
[354160166,1740301843982,-944.55,0.00014191,2]
[354160167,1740301843992,-500.0,0.00014191,2]
[354160168,1740301844001,-2235.93,0.00014191,2]
[354160169,1740301844010,-500.0,0.00014191,2]
[354160170,1740301844020,-500.0,0.00014191,2]
[354160171,1740301844029,-500.0,0.00014191,2]
[354160172,1740301844038,-993.87,0.00014191,2]
[354160173,1740301844048,-500.0,0.00014191,2]
[354160174,1740301844057,-593.61,0.00014191,2]
[354160175,1740301844066,-500.0,0.00014191,2]
[354160176,1740301844075,-1002.14957943,0.00014221,2]
[354160177,1740301844084,-504.60634579,0.00014221,2]
[354160178,1740301844094,-262.09523234,0.00014221,2]
[354160179,1740301844107,-1000.0,0.00014221,2]
[354160180,1740301844116,-500.67890581,0.00014221,2]
[354160181,1740301844125,-150.0,0.00014245,4]
[354160182,1740301844134,-396.0,0.00014259,2]
[354160183,1740301844144,-500.0,0.00014273,2]
[354160184,1740301844153,-705.15,0.00014273,2]
[354160185,1740301844163,-500.0,0.00014273,2]
[354160186,1740301844172,-1398.29,0.00014273,2]
[354160187,1740301844183,-500.0,0.00014273,2]
[354160188,1740301844192,-500.0,0.00014273,2]
[354160189,1740301844202,-500.0,0.00014273,2]
[354160190,1740301844211,-500.0,0.00014273,2]
[354160191,1740301844220,-500.0,0.00014273,2]
[354160192,1740301844229,-813.1,0.00014273,2]
[354160193,1740301844239,-500.0,0.00014273,2]
[354160194,1740301844248,-500.0,0.00014273,2]
[354160195,1740301844257,-500.0,0.00014273,2]
[354160196,1740301844266,-184.03,0.00014273,2]
[354160197,1740301844275,-4432.49,0.00014273,2]
[354160198,1740301844284,-500.0,0.00014273,2]
[354160199,1740301844293,-500.0,0.00014273,2]
[354160200,1740301844302,-505.7,0.00014273,2]
[354160201,1740301844311,-1623.47,0.00014273,2]
[354160202,1740301844320,-8302.59,0.00014273,2]
[354160203,1740301844329,-3032.66,0.00014273,2]
[354160204,1740301844338,-500.0,0.00014273,2]
[354160205,1740301844347,-944.55,0.00014273,2]
[354160206,1740301844356,-524.79,0.00014273,2]
[354160207,1740301844365,-2235.93,0.00014273,2]
[354160208,1740301844374,-500.0,0.00014273,2]
[354160209,1740301844383,-500.0,0.00014273,2]
[354160210,1740301844392,-993.87,0.00014273,2]
[354160211,1740301844402,-500.0,0.00014273,2]
[354160212,1740301844411,-593.61,0.00014273,2]
[354160213,1740301844420,-214.69,0.00014273,2]
[354160214,1740301844429,-151.0,0.00014355,2]
[354160215,1740301844439,-4390.24063985,0.00014355,5]
[354160216,1740301844448,-35173.06811457,0.00014356,5]
[354160217,1740301844458,-500.0,0.00014356,2]
[354160218,1740301844468,-705.15,0.00014356,2]
[354160219,1740301844477,-400.55,0.00014356,2]
[354160220,1740301844486,-1398.29,0.00014356,2]
[354160221,1740301844496,-500.0,0.00014356,2]
[354160222,1740301844506,-500.0,0.00014356,2]
[354160223,1740301844515,-500.0,0.00014356,2]
[354160224,1740301844595,-500.0,0.00014356,2]
[354160225,1740301844606,-500.0,0.00014356,2]
[354160226,1740301844615,-813.1,0.00014356,2]
[354160227,1740301844625,-500.0,0.00014356,2]
[354160228,1740301844634,-500.0,0.00014356,2]
[354160229,1740301844643,-500.0,0.00014356,2]
[354160230,1740301844653,-4432.49,0.00014356,2]
[354160231,1740301844662,-500.0,0.00014356,2]
[354160232,1740301844672,-500.0,0.00014356,2]
[354160233,1740301844681,-505.7,0.00014356,2]
[354160234,1740301844691,-1623.47,0.00014356,2]
[354160235,1740301844700,-8302.59,0.00014356,2]
[354160236,1740301844710,-3032.66,0.00014356,2]
[354160237,1740301844720,-500.0,0.00014356,2]
[354160238,1740301844730,-944.55,0.00014356,2]
[354160239,1740301844739,-2235.93,0.00014356,2]
[354160240,1740301844749,-500.0,0.00014356,2]
[354160241,1740301844758,-500.0,0.00014356,2]
[354160242,1740301844768,-993.87,0.00014356,2]
[354160243,1740301844777,-500.0,0.00014356,2]
[354160244,1740301844786,-593.61,0.00014356,2]
[354160245,1740301844796,-500.0,0.00014376,2]
[354160246,1740301844805,-602.89154806,0.00014398,2]
[354160247,1740301844815,-150.33548982,0.000144,2]
[354160248,1740301844824,-150.33548982,0.000144,2]
[354160249,1740301844833,-150.33548982,0.000144,2]
[354160250,1740301844843,-150.33548982,0.000144,2]
[354160251,1740301844853,-150.33548982,0.000144,2]
[354160252,1740301844862,-150.33548982,0.000144,2]
[354160253,1740301844872,-150.33548982,0.000144,2]
[354160254,1740301844881,-150.33,0.000144,2]
[354160255,1740301844890,-155.90347092,0.000144,2]
[354160256,1740301844900,-155.90347092,0.000144,2]
[354160257,1740301844911,-155.90347092,0.000144,2]
[354160258,1740301844920,-155.90347092,0.000144,2]
[354160259,1740301844929,-155.90347092,0.000144,2]
[354160260,1740301844938,-155.90347092,0.000144,2]
[354160261,1740301844947,-155.90347092,0.000144,2]
[354160262,1740301844957,-155.90347092,0.000144,2]
[354160263,1740301844967,-155.90347092,0.000144,2]
[354160264,1740301844976,-155.90347092,0.000144,2]
[354160265,1740301844986,-155.90347092,0.000144,2]
[354160266,1740301844995,-155.90347092,0.000144,2]
[354160267,1740301845005,-155.90347092,0.000144,2]
[354160268,1740301845014,-155.90347092,0.000144,2]
[354160269,1740301845024,-155.90347092,0.000144,2]
[354160270,1740301845033,-155.90347092,0.000144,2]
[354160271,1740301845043,-155.90347092,0.000144,2]
[354160272,1740301845053,-155.9,0.000144,2]
[354160273,1740301845063,-170.49315205,0.000144,2]
[354160274,1740301845073,-170.49315205,0.000144,2]
[354160275,1740301845083,-170.49315205,0.000144,2]
[354160276,1740301845093,-170.49315205,0.000144,2]
[354160277,1740301845107,-170.49315205,0.000144,2]
[354160278,1740301845116,-170.49,0.000144,2]
[354160279,1740301845126,-159.12694191,0.000144,2]
[354160280,1740301845136,-159.12694191,0.000144,2]
[354160281,1740301845147,-159.12694191,0.000144,2]
[354160282,1740301845156,-159.12694191,0.000144,2]
[354160283,1740301845165,-159.12694191,0.000144,2]
[354160284,1740301845178,-159.12694191,0.000144,2]
[354160285,1740301845187,-159.12694191,0.000144,2]
[354160286,1740301845197,-159.12694191,0.000144,2]
[354160287,1740301845206,-159.12694191,0.000144,2]
[354160288,1740301845215,-159.12694191,0.000144,2]
[354160289,1740301845225,-159.12694191,0.000144,2]
[354160290,1740301845236,-159.12694191,0.000144,2]
[354160291,1740301845246,-159.12694191,0.000144,2]
[354160292,1740301845256,-159.12694191,0.000144,2]
[354160293,1740301845266,-159.12,0.000144,2]
[354160294,1740301845275,-4736.96066309,0.00014419,2]
[354160295,1740301845285,-160.0,0.00014437,2]
[354160296,1740301845294,-160.35455737,0.00014437,2]
[354160297,1740301845304,-151.0,0.00014438,2]
[354160298,1740301845314,-500.0,0.00014438,2]
[354160299,1740301845323,-705.15,0.00014438,2]
[354160300,1740301845333,-151.0,0.00014438,2]
[354160301,1740301845343,-1398.29,0.00014438,2]